bitfinex-derivatives/quotes_SOLF0:USTF0_20251006
["timestamp","ask_amount","ask_price","bid_price","bid_amount"]
[1759754754579,5.39300392,233.87,233.79,3.8483]
[1759754754774,5.39300392,233.87,233.8,7.51]
[1759754755079,1.54590392,233.88,233.8,7.51]
[1759754755578,1.54590392,233.88,233.8,11.3581]
[1759754757879,5.39300392,233.88,233.8,11.3581]
[1759754758080,1.54590392,233.88,233.8,7.51]
[1759754758277,1.54590392,233.85,233.79,7.51]
[1759754758781,1.54590392,233.85,233.79,11.3583]
[1759754760281,1.54590392,233.85,233.8,7.51]
[1759754760877,1.54590392,233.85,233.79,3.8483]
[1759754761182,1.54590392,233.85,233.8,7.51]
[1759754762079,1.54590392,233.85,233.79,3.8483]
[1759754762980,1.54590392,233.85,233.8,7.51]
[1759754763181,1.54590392,233.85,233.79,3.8483]
[1759754764882,1.54590392,233.85,233.8,7.51]
[1759754765280,1.54590392,233.85,233.79,3.8483]
[1759754765680,1.54590392,233.85,233.8,7.51]
[1759754765878,1.54590392,233.85,233.79,3.8483]
[1759754766086,1.54590392,233.85,233.79,7.51]
[1759754767686,1.54590392,233.88,233.79,7.51]
[1759754767985,1.54590392,233.88,233.8,7.51]
[1759754768182,105.78,233.91,233.8,7.51]
[1759754768383,1.54590392,233.89,233.8,7.51]
[1759754768583,3.847,233.88,233.82,3.8479]
[1759754768886,1.54590392,233.89,233.8,7.51]
[1759754769188,1.54590392,233.86,233.8,7.51]
[1759754769587,5.39330392,233.86,233.8,7.51]
[1759754770186,3.8476,233.84,233.8,7.51]
[1759754770784,3.8476,233.84,233.8,11.08412672]
[1759754770984,3.8476,233.84,233.81,3.57412672]
[1759754771487,5.39320392,233.86,233.81,3.57412672]
[1759754771688,1.54590392,233.86,233.81,11.08412672]
[1759754772687,3.8475,233.85,233.81,11.08412672]
[1759754772884,3.8475,233.85,233.81,7.51]
[1759754773291,3.8475,233.85,233.8,3.57306117]
[1759754773589,3.8475,233.85,233.81,3.57306117]
[1759754773790,3.8475,233.85,233.82,7.51]
[1759754775395,3.8475,233.85,233.74,7.14731316]
[1759754775396,3.848,233.82,233.79,3.57306117]
[1759754775595,1.54590392,233.8,233.76,3.57306117]
[1759754775894,1.54590392,233.77,233.76,3.57306117]
[1759754776196,1.54590392,233.77,233.75,11.08306117]
[1759754776793,1.54590392,233.77,233.72,3.57306117]
[1759754776995,1.54590392,233.74,233.72,3.57306117]
[1759754778990,1.54590392,233.74,233.72,11.38306117]
[1759754779194,3.849,233.76,233.72,11.38306117]
[1759754779396,1.54590392,233.74,233.72,11.38306117]
[1759754780290,5.39520392,233.74,233.72,3.57306117]
[1759754780489,5.39520392,233.74,233.7,3.57306117]
[1759754780685,1.54590392,233.71,233.7,3.57306117]
[1759754780886,1.54590392,233.71,233.68,11.38306117]
[1759754781092,1.54590392,233.71,233.68,3.57306117]
[1759754781300,1.54590392,233.71,233.69,7.81]
[1759754782389,1.54590392,233.71,233.68,3.57306117]
[1759754782796,1.54590392,233.71,233.69,7.81]
[1759754784298,1.54590392,233.71,233.67,3.57306117]
[1759754784694,1.54590392,233.71,233.68,7.81]
[1759754785699,1.54590392,233.71,233.67,3.57306117]
[1759754785993,1.54590392,233.71,233.68,7.81]
[1759754786199,1.54590392,233.71,233.67,3.57306117]
[1759754786492,1.54590392,233.71,233.68,7.81]
[1759754786693,1.54590392,233.71,233.67,3.57306117]
[1759754786890,1.54590392,233.71,233.68,7.81]
[1759754787198,1.54590392,233.75,233.68,7.81]
[1759754787395,105.74,233.76,233.7,11.38306117]
[1759754787693,3.8478,233.83,233.74,7.81]
[1759754787894,5.39370392,233.83,233.76,11.38306117]
[1759754788094,5.39370392,233.83,233.77,7.81]
[1759754788701,1.54590392,233.83,233.77,7.81]
[1759754789000,3.8477,233.84,233.77,7.81]
[1759754789194,1.54590392,233.83,233.77,7.81]
[1759754791098,3.8477,233.84,233.77,7.81]
[1759754791801,3.8479,233.83,233.77,7.81]
[1759754794503,3.848,233.82,233.77,7.81]
[1759754794702,3.848,233.82,233.76,7.81]
[1759754795904,3.8482,233.81,233.75,11.48306117]
[1759754798306,3.8484,233.8,233.75,11.48306117]
[1759754798507,3.8484,233.8,233.76,7.91]
[1759754799101,3.8484,233.8,233.75,3.57306117]
[1759754800496,3.8484,233.8,233.76,7.91]
[1759754800709,105.72,233.86,233.76,7.91]
[1759754800902,59.8401,233.89,233.76,7.91]
[1759754801104,108.07515106,233.88,233.76,7.91]
[1759754801608,3.8477,233.84,233.76,7.91]
[1759754802306,3.8477,233.84,233.76,11.48306117]
[1759754802502,3.8477,233.84,233.77,7.91]
[1759754807703,3.8478,233.83,233.77,7.91]
[1759754811602,0.74444076,233.91,233.79,7.22]
[1759754811806,10.2507565,233.96,233.81,3.57112086]
[1759754812000,10.2507565,233.96,233.86,10.79112086]
[1759754812206,10.2507565,233.96,233.87,7.22]
[1759754812406,10.2507565,233.96,233.88,3.8468]
[1759754812608,10.2507565,233.96,233.89,7.22]
[1759754815010,3.8455,233.97,233.89,7.22]
[1759754816816,109.4251,233.99,233.91,7.22]
[1759754817013,72.53162719,234.05,233.91,7.22]
[1759754817216,105.58,234.04,233.91,7.22]
[1759754818419,105.58,234.04,233.92,7.22]
[1759754819712,3.8449,234.01,233.92,7.22]
[1759754820719,3.8445,234.03,233.93,7.22]
[1759754820915,11.27076747,234.08,233.93,7.22]
[1759754821122,119.22591853,234.08,233.93,7.22]
[1759754821823,119.22591853,234.08,233.96,7.22]
[1759754821824,3.8442,234.05,233.96,7.22]
[1759754823022,3.8445,234.04,233.96,7.22]
[1759754824118,311.38,234.1,233.98,7.22]
[1759754824918,3.844,234.06,233.98,7.22]
[1759754825219,59.777,234.14,233.98,7.22]
[1759754825524,2.41515106,234.12,233.98,7.22]
[1759754825724,3.8436,234.09,233.99,3.8451]
[1759754826025,3.8436,234.09,234.0,7.22]
[1759754828926,2.41515106,234.13,234.02,7.22]
[1759754828927,3.8431,234.12,234.02,7.22]
[1759754829128,2.41515106,234.13,234.02,7.22]
[1759754829327,105.48,234.11,234.02,7.22]
[1759754829735,3.8434,234.1,234.02,7.22]
[1759754835525,3.843,234.12,234.03,7.22]
[1759754835728,105.42,234.13,234.03,7.22]
[1759754836534,3.8428,234.14,234.05,3.8441]
[1759754836734,3.8428,234.14,234.03,7.22]
[1759754836735,42.4,234.15,234.03,7.22]
[1759754837339,2.41515106,234.17,234.07,3.8438]
[1759754837340,6.25745106,234.17,234.07,3.8438]
[1759754837636,6.25745106,234.17,234.03,7.22]
[1759754837838,2.41515106,234.17,234.03,7.22]
[1759754838636,3.8425,234.16,234.09,7.26]
[1759754840641,3.842,234.18,234.11,7.26]
[1759754842043,3.8417,234.2,234.11,7.26]
[1759754842248,2.41515106,234.21,234.11,7.26]
[1759754842850,3.8418,234.2,234.11,7.26]
[1759754844545,2.41515106,234.21,234.11,7.26]
[1759754845649,3.8423,234.17,234.11,7.26]
[1759754846655,3.8418,234.19,234.11,7.26]
[1759754849554,107.73515106,234.2,234.11,7.26]
[1759754850355,2.41515106,234.2,234.11,7.26]
[1759754850556,3.8423,234.17,234.11,7.26]
[1759754850853,105.32,234.2,234.11,7.26]
[1759754851154,5.38303847,234.19,234.11,7.26]
[1759754852957,3.8419,234.19,234.11,7.26]
[1759754853257,1.54113847,234.18,234.11,7.26]
[1759754854660,5.38323847,234.18,234.11,7.26]
[1759754857963,3.8423,234.17,234.11,7.26]
[1759754859555,3.8424,234.16,234.09,7.62]
[1759754859759,1.54113847,234.18,234.09,7.62]
[1759754860159,3.8423,234.17,234.09,7.62]
[1759754860867,3.8424,234.16,234.09,7.62]
[1759754861363,1.54113847,234.18,234.09,7.62]
[1759754861563,3.8426,234.15,234.09,7.62]
[1759754861864,1.54113847,234.18,234.09,7.62]
[1759754862259,3.8424,234.16,234.09,7.62]
[1759754862661,105.32,234.2,234.09,7.62]
[1759754862862,1.54113847,234.19,234.09,7.62]
[1759754863362,1.54113847,234.2,234.11,7.62]
[1759754863564,1.54113847,234.2,234.12,7.62]
[1759754863868,1.54113847,234.22,234.12,7.62]
[1759754864567,3.8417,234.2,234.12,3.8429]
[1759754864766,3.8417,234.2,234.13,7.62]
[1759754865766,3.842,234.19,234.13,7.62]
[1759754866463,5.38263847,234.22,234.13,7.62]
[1759754866865,3.8415,234.22,234.14,7.62]
[1759754867264,3.8415,234.22,234.14,3.8426]
[1759754867466,11.30348998,234.23,234.14,7.62]
[1759754867964,15.14478998,234.23,234.15,3.8423]
[1759754868268,15.14478998,234.23,234.16,7.6]
[1759754869871,16.68592845,234.23,234.16,7.6]
[1759754872664,15.14478998,234.23,234.16,7.6]
[1759754876972,15.14478998,234.23,234.16,3.8423]
[1759754876973,11.30348998,234.23,234.16,3.8423]
[1759754877176,11.30348998,234.23,234.17,7.6]
[1759754878978,3.8414,234.22,234.17,7.6]
[1759754879178,3.8414,234.22,234.16,3.57112086]
[1759754879378,3.8414,234.22,234.16,11.17112086]
[1759754880181,11.30348998,234.23,234.16,11.17112086]
[1759754880373,11.30348998,234.23,234.17,3.57112086]
[1759754882369,11.30348998,234.23,234.19,7.6]
[1759754882569,11.30348998,234.23,234.18,3.57112086]
[1759754882775,11.30348998,234.23,234.18,11.17112086]
[1759754883074,11.30348998,234.23,234.18,3.57112086]
[1759754883280,1.54113847,234.21,234.18,3.57112086]
[1759754883982,5.38273847,234.21,234.18,3.57112086]
[1759754884987,105.16,234.26,234.18,3.57112086]
[1759754885178,1.54113847,234.24,234.18,3.57112086]
[1759754885781,3.8413,234.23,234.18,11.17112086]
[1759754886173,3.8413,234.23,234.19,7.6]
[1759754887682,3.8413,234.23,234.18,3.57112086]
[1759754887881,3.8413,234.23,234.19,7.6]
[1759754888486,1.54113847,234.24,234.18,3.57112086]
[1759754888984,1.54113847,234.24,234.17,3.57112086]
[1759754889680,3.8416,234.21,234.17,11.17112086]
[1759754890075,5.38273847,234.21,234.17,11.17112086]
[1759754892187,3.8418,234.2,234.17,11.17112086]
[1759754892887,3.8418,234.2,234.17,3.57112086]
[1759754893084,3.8418,234.2,234.17,11.17112086]
[1759754893388,1.54113847,234.21,234.18,7.6]
[1759754894189,3.8418,234.2,234.17,11.17112086]
[1759754895086,3.8414,234.22,234.17,3.57112086]
[1759754895295,1.54113847,234.23,234.17,3.57112086]
[1759754895896,1.54113847,234.23,234.18,7.6]
[1759754896099,5.38243847,234.23,234.17,3.57112086]
[1759754896393,5.38243847,234.23,234.18,7.6]
[1759754896898,3.8414,234.22,234.17,3.57112086]
[1759754897297,3.8414,234.22,234.18,7.6]
[1759754897498,3.8414,234.22,234.18,3.57112086]
[1759754897700,3.8414,234.22,234.19,7.6]
[1759754897901,3.8414,234.22,234.19,7.7]
[1759754899892,3.8416,234.21,234.19,7.7]
[1759754900803,3.8416,234.21,234.18,3.57112086]
[1759754901100,3.8416,234.21,234.18,11.27112086]
[1759754902502,3.8416,234.21,234.19,7.7]
[1759754902903,3.8412,234.24,234.19,7.7]
[1759754903103,106.64113847,234.25,234.18,11.27112086]
[1759754903302,106.64113847,234.25,234.19,3.57112086]
[1759754903504,105.06,234.24,234.19,3.57112086]
[1759754904001,1.54113847,234.25,234.19,3.57112086]
[1759754904202,3.8414,234.22,234.19,3.57112086]
[1759754904406,3.8414,234.22,234.2,7.7]
[1759754905698,3.8416,234.21,234.19,3.57112086]
[1759754907405,3.8416,234.21,234.2,3.57112086]
[1759754908104,5.38273847,234.21,234.19,3.57112086]
[1759754908404,3.8418,234.19,234.18,3.57112086]
[1759754909104,3.8418,234.19,234.12,14.84731316]
[1759754909105,3.8418,234.19,234.17,3.57112086]
[1759754910600,3.8422,234.17,234.16,3.57112086]
[1759754915209,3.8422,234.17,234.15,3.57112086]
[1759754915710,3.8422,234.17,234.15,10.78112086]
[1759754916312,105.04,234.18,234.14,2.086e-05]
[1759754916511,59.768,234.17,234.1,7.21]
[1759754917407,3.8425,234.15,234.1,7.21]
[1759754917611,59.768,234.17,234.1,7.21]
[1759754918710,3.8431,234.12,234.1,7.21]
[1759754919010,108.8631,234.12,234.1,7.21]
[1759754920410,108.8631,234.12,234.07,7.21]
[1759754920711,108.8631,234.12,234.06,4.7834729]
[1759754920904,108.8631,234.12,234.07,7.21]
[1759754921109,108.8631,234.12,234.06,4.7834729]
[1759754921304,3.8431,234.12,234.06,4.7834729]
[1759754921614,95.5831,234.12,234.07,7.21]
[1759754922009,3.8427,234.14,234.06,4.7834729]
[1759754922213,72.26,234.13,234.07,7.21]
[1759754922411,105.0,234.13,234.07,7.21]
[1759754922612,105.0,234.13,234.08,7.21]
[1759754922808,108.8429,234.13,234.07,7.21]
[1759754923813,3.8434,234.1,234.07,7.21]
[1759754924010,3.8434,234.1,234.06,4.7834729]
[1759754924208,3.8434,234.1,234.07,7.21]
[1759754924411,3.8429,234.13,234.07,7.21]
[1759754924614,105.0,234.13,234.07,7.21]
[1759754925113,59.769,234.17,234.07,7.21]
[1759754925418,310.92,234.25,234.09,7.21]
[1759754925611,310.92,234.25,234.09,11.9934729]
[1759754925807,104.98,234.22,234.12,7.21]
[1759754926719,105.0,234.22,234.12,11.9934729]
[1759754927018,105.0,234.22,234.13,11.9934729]
[1759754927220,105.0,234.22,234.14,7.21]
[1759754927718,3.8415,234.21,234.14,7.21]
[1759754928212,3.8418,234.2,234.14,7.21]
[1759754929919,3.842,234.19,234.13,7.91]
[1759754930317,3.8422,234.17,234.13,7.91]
[1759754931315,3.8422,234.17,234.1,4.7834729]
[1759754931316,108.8022,234.17,234.09,4.7834729]
[1759754931517,108.8022,234.17,234.1,7.91]
[1759754932222,3.8425,234.15,234.09,7.91]
[1759754932622,104.96,234.17,234.09,7.91]
[1759754933724,62.16686655,234.21,234.08,12.6934729]
[1759754933924,104.96,234.2,234.08,12.6934729]
[1759754934917,59.763,234.19,234.08,12.6934729]
[1759754935118,104.96,234.2,234.06,4.7834729]
[1759754935119,3.8431,234.12,234.06,4.7834729]
[1759754935418,104.94,234.12,234.05,4.7834729]
[1759754936618,3.8434,234.1,234.05,7.91]
[1759754937017,3.8434,234.1,234.04,4.7834729]
[1759754937323,108.783,234.12,234.04,12.6934729]
[1759754938124,3.8433,234.1,234.04,7.91]
[1759754938520,104.94,234.12,234.04,7.91]
[1759754938817,62.17726655,234.17,234.04,7.91]
[1759754939023,104.94,234.16,234.05,7.91]
[1759754939619,59.7602,234.2,234.05,7.91]
[1759754939917,62.16686655,234.21,234.01,15.40260873]
[1759754939918,104.94,234.19,234.06,4.7834729]
[1759754940118,104.94,234.19,234.07,7.91]
[1759754940518,2.40816655,234.21,234.07,7.91]
[1759754940718,56.8,234.2,234.09,7.91]
[1759754942326,3.8421,234.18,234.09,7.91]
[1759754943224,3.8421,234.18,234.09,3.8433]
[1759754943420,3.8421,234.18,234.1,7.91]
[1759754944326,3.8421,234.18,234.11,7.91]
[1759754944624,3.8417,234.2,234.11,11.7531]
[1759754944929,3.8417,234.2,234.12,7.91]
[1759754945130,104.92,234.22,234.12,7.91]
[1759754945530,104.92,234.23,234.12,7.91]
[1759754945927,3.8418,234.19,234.12,7.91]
[1759754946833,3.8421,234.18,234.12,7.91]
[1759754949233,3.8423,234.17,234.1,4.7834729]
[1759754949430,3.8423,234.17,234.11,7.91]
[1759754949933,62.16316655,234.22,234.11,7.91]
[1759754949934,3.8418,234.2,234.11,7.91]
[1759754950235,2.40816655,234.22,234.11,7.91]
[1759754950830,2.40816655,234.22,234.11,11.7531]
[1759754951036,104.9,234.22,234.12,7.91]
[1759754952638,3.8418,234.2,234.12,7.91]
[1759754953733,3.8414,234.22,234.13,12.6934729]
[1759754953934,3.8414,234.22,234.15,7.91]
[1759754958141,3.841,234.24,234.15,7.91]
[1759754958437,104.86,234.25,234.15,7.91]
[1759754959038,3.8416,234.21,234.15,7.91]
[1759754960042,3.8418,234.2,234.15,7.91]
[1759754960437,3.8418,234.2,234.14,7.48]
[1759754962546,3.842,234.19,234.14,7.48]
[1759754963042,3.842,234.19,234.13,7.48]
[1759754964650,3.8415,234.22,234.13,7.48]
[1759754964849,3.8415,234.22,234.13,12.2634729]
[1759754965252,3.8415,234.22,234.14,7.48]
[1759754967855,104.82,234.23,234.14,7.48]
[1759754967856,3.8416,234.21,234.14,7.48]
[1759754968456,3.8418,234.2,234.14,7.48]
[1759754970252,104.82,234.23,234.14,7.48]
[1759754970458,2.40816655,234.22,234.11,7.48]
[1759754971356,3.8421,234.18,234.11,4.7834729]
[1759754971660,3.8421,234.18,234.12,7.48]
[1759754974662,3.8423,234.17,234.11,12.2634729]
[1759754975356,3.8423,234.17,234.11,4.7834729]
[1759754975558,3.8423,234.17,234.12,7.48]
[1759754975863,3.8423,234.17,234.11,4.7834729]
[1759754976160,3.8423,234.17,234.12,7.48]
[1759754976351,3.8423,234.17,234.14,3.56792428]
[1759754976552,3.8423,234.17,234.14,11.04792428]
[1759754976763,3.8424,234.16,234.14,11.04792428]
[1759754977762,3.8424,234.16,234.14,3.56792428]
[1759754977959,3.8424,234.16,234.15,7.48]
[1759754979463,3.8421,234.18,234.15,7.48]
[1759754980360,3.8421,234.18,234.14,3.56792428]
[1759754980561,5.38269876,234.2,234.15,3.56792428]
[1759754980762,5.38269876,234.2,234.16,7.48]
[1759754981062,1.54099876,234.2,234.16,7.48]
[1759754981363,1.54099876,234.2,234.15,3.56792428]
[1759754981562,1.54099876,234.2,234.15,11.04792428]
[1759754981763,1.54099876,234.2,234.16,7.48]
[1759754982155,1.54099876,234.2,234.16,11.04792428]
[1759754982357,1.54099876,234.2,234.17,7.48]
[1759754982557,3.8419,234.19,234.17,7.48]
[1759754983358,3.8419,234.19,234.16,3.56792428]
[1759754983562,3.8419,234.19,234.17,7.48]
[1759754983859,3.8419,234.19,234.16,3.56792428]
[1759754984065,3.8419,234.19,234.18,7.48]
[1759754984464,3.8415,234.22,234.17,3.56792428]
[1759754984664,106.32099876,234.23,234.17,11.04792428]
[1759754985564,3.8417,234.21,234.17,11.04792428]
[1759754985762,3.8417,234.21,234.18,7.48]
[1759754986371,3.8418,234.2,234.17,3.56792428]
[1759754986572,3.8418,234.2,234.17,11.04792428]
[1759754986870,3.8418,234.2,234.18,7.48]
[1759754987467,3.8413,234.23,234.19,7.48]
[1759754987667,3.8413,234.23,234.18,3.56792428]
[1759754988171,106.30099876,234.24,234.18,11.26792428]
[1759754988766,108.6011,234.24,234.21,7.7]
[1759754989069,104.76,234.24,234.21,7.7]
[1759754989269,11.24459405,234.28,234.22,3.56792428]
[1759754989466,117.52559281,234.28,234.22,3.56792428]
[1759754990170,3.8407,234.27,234.23,7.7]
[1759754990864,117.52559281,234.28,234.23,11.26792428]
[1759754991069,117.52559281,234.28,234.23,7.7]
[1759754991767,117.52559281,234.28,234.22,3.56792428]
[1759754991969,117.52559281,234.28,234.21,3.56792428]
[1759754991970,1.54099876,234.24,234.21,3.56792428]
[1759754992365,1.54099876,234.24,234.2,3.56792428]
[1759754992566,175.72529405,234.28,234.2,11.26792428]
[1759754992773,1.54099876,234.24,234.2,11.26792428]
[1759754992973,104.72,234.23,234.2,11.26792428]
[1759754993771,104.72,234.23,234.13,1.54099876]
[1759754993772,1.54099876,234.21,234.18,3.56792428]
[1759754994280,1.54099876,234.21,234.17,3.56792428]
[1759754995675,3.842,234.19,234.17,3.56792428]
[1759754995980,3.842,234.19,234.17,11.26792428]
[1759754996976,3.842,234.19,234.17,3.56792428]
[1759754997173,3.842,234.19,234.16,3.56792428]
[1759754997379,3.842,234.19,234.16,11.26792428]
[1759754998474,3.8421,234.18,234.16,11.26792428]
[1759754999672,3.8421,234.18,234.16,7.7]
[1759754999881,108.5617,234.2,234.16,3.56792428]
[1759755000074,108.5617,234.2,234.17,7.7]
[1759755001979,104.7,234.19,234.17,7.7]
[1759755002382,108.5419,234.19,234.17,7.7]
[1759755002584,108.5419,234.19,234.16,11.26792428]
[1759755002875,104.7,234.19,234.16,11.26792428]
[1759755004677,104.7,234.19,234.16,3.56792428]
[1759755004872,104.7,234.19,234.13,4.7834729]
[1759755004873,104.7,234.19,234.13,3.56792428]
[1759755005079,104.7,234.18,234.16,7.7]
[1759755005279,104.7,234.17,234.16,7.7]
[1759755005878,104.7,234.2,234.15,3.56792428]
[1759755006078,104.7,234.2,234.17,11.26792428]
[1759755006980,104.7,234.2,234.18,7.7]
[1759755008474,104.7,234.2,234.17,3.56792428]
[1759755008680,108.5418,234.2,234.17,3.56792428]
[1759755008877,104.7,234.2,234.17,3.56792428]
[1759755009072,104.7,234.2,234.16,3.56792428]
[1759755009278,104.7,234.2,234.15,3.56792428]
[1759755009584,3.8423,234.16,234.15,3.56792428]
[1759755009782,3.8423,234.16,234.14,3.56792428]
[1759755011278,5.38299876,234.18,234.14,3.56792428]
[1759755011673,1.54099876,234.18,234.14,3.56792428]
[1759755012280,3.8418,234.2,234.15,3.56792428]
[1759755012484,1.54099876,234.21,234.17,7.7]
[1759755012682,104.68,234.2,234.17,7.7]
[1759755013081,104.68,234.2,234.16,3.56792428]
[1759755013281,104.68,234.2,234.17,7.7]
[1759755014178,104.68,234.2,234.17,11.26792428]
[1759755014381,104.68,234.2,234.17,7.7]
[1759755014586,104.68,234.21,234.17,7.7]
[1759755015182,104.68,234.21,234.17,11.26792428]
[1759755015387,1.54099876,234.24,234.17,11.26792428]
[1759755015685,97.92,234.23,234.2,7.7]
[1759755016280,1.54099876,234.24,234.2,7.7]
[1759755016477,1.54099876,234.27,234.19,3.56792428]
[1759755016676,1.54099876,234.27,234.2,7.7]
[1759755016677,104.66,234.25,234.2,7.7]
[1759755016891,104.66,234.25,234.19,3.56792428]
[1759755017085,104.66,234.25,234.19,11.26792428]
[1759755017294,3.8411,234.24,234.2,7.7]
[1759755017483,104.66,234.25,234.2,3.56792428]
[1759755017788,1.54099876,234.27,234.19,7.7]
[1759755017789,104.66,234.27,234.21,11.26792428]
[1759755018592,11.24459405,234.28,234.21,11.26792428]
[1759755018888,115.90459405,234.28,234.21,11.26792428]
[1759755021586,3.8405,234.27,234.21,11.26792428]
[1759755023790,104.64,234.26,234.21,11.26792428]
[1759755024695,104.64,234.26,234.21,3.56792428]
[1759755024891,104.64,234.26,234.22,7.83]
[1759755025091,3.8409,234.25,234.21,3.56792428]
[1759755025287,3.8409,234.25,234.19,3.56792428]
[1759755026595,104.62,234.24,234.19,3.56792428]
[1759755026796,104.62,234.24,234.2,7.83]
[1759755027193,3.8412,234.23,234.19,3.56792428]
[1759755027393,3.8412,234.23,234.17,3.56792428]
[1759755029298,3.8416,234.21,234.17,3.56792428]
[1759755029998,3.8416,234.21,234.16,3.56792428]
[1759755030498,3.8416,234.21,234.16,11.39792428]
[1759755031996,106.16099876,234.24,234.16,11.39792428]
[1759755033198,1.54099876,234.23,234.16,11.39792428]
[1759755034606,3.8418,234.2,234.16,11.39792428]
[1759755034904,104.6,234.22,234.16,11.39792428]
[1759755035304,104.6,234.22,234.17,7.21]
[1759755035606,104.6,234.22,234.16,3.56792428]
[1759755035802,104.6,234.22,234.17,3.56792428]
[1759755036306,104.6,234.22,234.18,7.21]
[1759755036510,104.6,234.22,234.17,3.56792428]
[1759755036709,108.4415,234.22,234.18,7.21]
[1759755037102,108.4415,234.22,234.17,3.56792428]
[1759755037298,108.4415,234.22,234.18,7.21]
[1759755037703,108.4415,234.22,234.17,3.56792428]
[1759755037908,108.4415,234.22,234.18,7.21]
[1759755038209,108.4415,234.22,234.17,3.56871517]
[1759755038613,3.8411,234.24,234.17,3.56871517]
[1759755038908,310.84,234.34,234.18,7.21]
[1759755039108,95.04,234.28,234.19,3.56871517]
[1759755039308,3.841,234.25,234.19,3.56871517]
[1759755040213,95.04,234.28,234.19,3.56871517]
[1759755040214,3.8411,234.24,234.19,10.77871517]
[1759755040512,59.7475,234.25,234.19,3.36363354]
[1759755040815,3.8419,234.19,234.12,7.21]
[1759755041009,108.4219,234.19,234.12,7.21]
[1759755041413,104.58,234.19,234.12,7.21]
[1759755041615,3.8415,234.21,234.13,7.21]
[1759755041616,108.4215,234.21,234.13,7.21]
[1759755043012,3.8415,234.21,234.13,4.7834729]
[1759755043210,3.8415,234.21,234.14,7.21]
[1759755045015,3.8415,234.21,234.14,11.9934729]
[1759755045616,2.40737102,234.26,234.14,11.9934729]
[1759755045617,13.61085712,234.29,234.15,7.21]
[1759755045909,104.58,234.28,234.16,11.9934729]
[1759755046116,59.7504,234.24,234.15,4.7834729]
[1759755046318,59.7549,234.22,234.13,4.7834729]
[1759755046515,106.98737102,234.21,234.13,4.7834729]
[1759755046717,104.58,234.21,234.12,7.21]
[1759755047709,3.8423,234.17,234.11,11.9934729]
[1759755048819,3.8419,234.19,234.11,11.9934729]
[1759755049212,108.4219,234.19,234.11,11.9934729]
[1759755049411,3.8421,234.18,234.11,11.9934729]
[1759755049918,104.58,234.19,234.11,7.21]
[1759755050115,3.8428,234.14,234.09,4.7834729]
[1759755050422,106.98737102,234.19,234.09,7.85]
[1759755050920,3.8426,234.15,234.09,7.85]
[1759755052222,3.8428,234.13,234.09,7.85]
[1759755052817,3.8425,234.15,234.09,7.85]
[1759755054920,3.8428,234.13,234.09,7.85]
[1759755055320,3.8428,234.13,234.07,4.7834729]
[1759755055721,3.8428,234.13,234.06,12.6334729]
[1759755057017,3.8428,234.13,234.06,7.85]
[1759755060326,2.40737102,234.07,233.99,7.85]
[1759755060717,104.68,234.06,233.99,7.85]
[1759755060917,3.845,234.0,233.92,7.85]
[1759755061118,104.68,234.06,233.92,7.85]
[1759755062528,117.74449781,234.06,233.92,7.85]
[1759755062727,117.74449781,234.06,233.94,7.85]
[1759755063323,3.8448,234.02,233.94,7.85]
[1759755070133,104.62,234.02,233.94,7.85]
[1759755070831,104.62,234.03,233.94,7.85]
[1759755072028,3.8438,234.07,233.96,3.8455]
[1759755072234,14.5,234.06,233.97,7.85]
[1759755072934,3.8444,234.04,233.97,7.85]